fUSD/lending_fUSD_20250117
["ID","MTS","AMOUNT","RATE_DAILY","PERIOD"]
[349303034,1737108634819,-500.0,0.00029809,2]
[349303035,1737108634828,-500.0,0.00029809,2]
[349303036,1737108634838,-500.0,0.00029809,2]
[349303037,1737108634847,-500.0,0.00029809,2]
[349303038,1737108634857,-500.0,0.00029809,2]
[349303039,1737108634867,-500.0,0.00029809,2]
[349303040,1737108634876,-500.0,0.00029809,2]
[349303041,1737108634885,-500.0,0.00029809,2]
[349303042,1737108634895,-500.0,0.00029809,2]
[349303043,1737108634905,-500.0,0.00029809,2]
[349303044,1737108634914,-500.0,0.00029809,2]
[349303045,1737108634924,-500.0,0.00029809,2]
[349303046,1737108634933,-504.68075787,0.00029809,2]
[349303047,1737108634943,-500.0,0.00029809,2]
[349303048,1737108634953,-505.51451093,0.00029809,2]
[349303049,1737108634962,-500.0,0.00029809,2]
[349303050,1737108634970,-500.0,0.00029809,2]
[349303051,1737108634980,-188.67022601,0.00029809,2]
[349303052,1737108634989,-500.0,0.00029809,2]
[349303053,1737108634999,-500.0,0.00029809,2]
[349303054,1737108635008,-500.0,0.00029809,2]
[349303055,1737108635017,-500.0,0.00029809,2]
[349303056,1737108635027,-500.0,0.00029809,2]
[349303057,1737108635036,-501.58493963,0.00029809,2]
[349303058,1737108635045,-500.0,0.00029809,2]
[349303059,1737108635056,-500.0,0.00029809,2]
[349303060,1737108635066,-500.0,0.00029809,2]
[349303061,1737108635075,-500.0,0.00029809,2]
[349303062,1737108635085,-500.56457671,0.00029809,2]
[349303063,1737108635095,-500.0,0.00029809,2]
[349303064,1737108635104,-500.0,0.00029809,2]
[349303065,1737108635115,-500.0,0.00029809,2]
[349303066,1737108635124,-500.0,0.00029809,2]
[349303067,1737108635134,-502.21263017,0.00029809,2]
[349303068,1737108635144,-500.0,0.00029809,2]
[349303069,1737108635153,-500.0,0.00029809,2]
[349303070,1737108635163,-500.0,0.00029809,2]
[349303071,1737108635172,-500.0,0.00029809,2]
[349303072,1737108635182,-500.0,0.00029809,2]
[349303073,1737108635191,-500.0,0.00029809,2]
[349303074,1737108635201,-500.0,0.00029809,2]
[349303075,1737108635210,-500.0,0.00029809,2]
[349303076,1737108635220,-500.0,0.00029809,2]
[349303077,1737108635229,-500.0,0.00029809,2]
[349303078,1737108635238,-500.0,0.00029809,2]
[349303079,1737108635247,-500.0,0.00029809,2]
[349303080,1737108635256,-502.19431575,0.00029809,2]
[349303081,1737108635266,-500.0,0.00029809,2]
[349303082,1737108635275,-500.0,0.00029809,2]
[349303083,1737108635285,-500.0,0.00029809,2]
[349303084,1737108635294,-500.0,0.00029809,2]
[349303085,1737108635303,-500.0,0.00029809,2]
[349303086,1737108635312,-500.0,0.00029809,2]
[349303087,1737108635321,-500.0,0.00029809,2]
[349303088,1737108635331,-500.0,0.00029809,2]
[349303089,1737108635340,-500.0,0.00029809,2]
[349303090,1737108635350,-500.0,0.00029809,2]
[349303091,1737108635359,-500.0,0.00029809,2]
[349303092,1737108635368,-500.0,0.00029809,2]
[349303093,1737108635378,-500.0,0.00029809,2]
[349303094,1737108635388,-500.0,0.00029809,2]
[349303095,1737108635397,-500.0,0.00029809,2]
[349303096,1737108635406,-514.2098893,0.00029809,2]
[349303097,1737108635415,-500.0,0.00029809,2]
[349303098,1737108635426,-500.0,0.00029809,2]
[349303099,1737108635435,-500.0,0.00029809,2]
[349303100,1737108635444,-500.0,0.00029809,2]
[349303101,1737108635455,-514.20872779,0.00029809,2]
[349303102,1737108635464,-500.0,0.00029809,2]
[349303103,1737108635475,-500.0,0.00029809,2]
[349303104,1737108635488,-500.0,0.00029809,2]
[349303105,1737108635497,-500.0,0.00029809,2]
[349303106,1737108635506,-1999.0,0.00029809,2]
[349303107,1737108635515,-1999.0,0.00029809,2]
[349303108,1737108635525,-1999.0,0.00029809,2]
[349303109,1737108635534,-1999.0,0.00029809,2]
[349303110,1737108635543,-1999.0,0.00029809,2]
[349303111,1737108635552,-1999.0,0.00029809,2]
[349303112,1737108635561,-1999.0,0.00029809,2]
[349303113,1737108635570,-1999.0,0.00029809,2]
[349303114,1737108635580,-1999.0,0.00029809,2]
[349303115,1737108635589,-1999.0,0.00029809,2]
[349303116,1737108635598,-503.32764908,0.00029809,2]
[349303117,1737108635608,-1999.0,0.00029809,2]
[349303118,1737108635617,-1999.0,0.00029809,2]
[349303119,1737108635627,-1999.0,0.00029809,2]
[349303120,1737108635637,-1999.0,0.00029809,2]
[349303121,1737108635646,-1999.0,0.00029809,2]
[349303122,1737108635655,-1845.47283253,0.00029809,2]
[349303123,1737108635668,-153.52716747,0.00029809,2]
[349303124,1737108635677,-558.4965057,0.00029809,2]
[349303125,1737108635689,-646.59182778,0.00029809,2]
[349303126,1737108635700,-793.91166652,0.00029809,2]
[349303127,1737108635710,-1999.0,0.00029809,2]
[349303128,1737108635718,-1999.0,0.00029809,2]
[349303129,1737108635727,-1580.02154331,0.00029809,2]
[349303130,1737108635736,-512.30197179,0.00029809,2]
[349303131,1737108635745,-500.0,0.00029809,2]
[349303132,1737108635754,-500.0,0.00029809,2]
[349303133,1737108635763,-500.0,0.00029809,2]
[349303134,1737108635772,-514.10187033,0.00029809,2]
[349303135,1737108635781,-500.0,0.00029809,2]
[349303136,1737108635791,-500.0,0.00029809,2]
[349303137,1737108635800,-500.0,0.00029809,2]
[349303138,1737108635809,-500.0,0.00029809,2]
[349303139,1737108635818,-500.0,0.00029809,2]
[349303140,1737108635827,-500.0,0.00029809,2]
[349303141,1737108635837,-500.0,0.00029809,2]
[349303142,1737108635846,-158.91819727,0.00029809,2]
[349303143,1737108635857,-354.92370002,0.00029809,2]
[349303144,1737108635868,-1.48633473,0.00029809,2]
[349303145,1737108635877,-616.01905702,0.00029809,2]
[349303146,1737108635887,-500.0,0.00029809,2]
[349303147,1737108635896,-500.0,0.00029809,2]
[349303148,1737108635905,-500.0,0.00029809,2]
[349303149,1737108635915,-151.36091751,0.00029809,2]
[349303150,1737108635924,-500.0,0.00029809,2]
[349303151,1737108635934,-500.0,0.00029809,2]
[349303152,1737108635943,-500.0,0.00029809,2]
[349303153,1737108635955,-500.0,0.00029809,2]
[349303154,1737108635964,-500.0,0.00029809,2]
[349303155,1737108635974,-500.0,0.00029809,2]
[349303156,1737108635983,-500.0,0.00029809,2]
[349303157,1737108635993,-500.0,0.00029809,2]
[349303158,1737108636002,-500.0,0.00029809,2]
[349303159,1737108636011,-635.17075658,0.00029809,2]
[349303160,1737108636020,-500.0,0.00029809,2]
[349303161,1737108636030,-506.38569865,0.00029809,2]
[349303162,1737108636042,-325.79096405,0.00029809,2]
[349303163,1737108636053,-500.0,0.00029809,2]
[349303164,1737108636062,-500.0,0.00029809,2]
[349303165,1737108636071,-500.0,0.00029809,2]
[349303166,1737108636081,-500.0,0.00029809,2]
[349303167,1737108636090,-500.0,0.00029809,2]
[349303168,1737108636100,-500.0,0.00029809,2]
[349303169,1737108636109,-500.0,0.00029809,2]
[349303170,1737108636119,-211.78690225,0.00029809,2]
[349303171,1737108636128,-500.0,0.00029809,2]
[349303172,1737108636137,-500.0,0.00029809,2]
[349303173,1737108636146,-584.2014866,0.00029809,2]
[349303174,1737108636155,-500.0,0.00029809,2]
[349303175,1737108636162,-500.0,0.00029809,2]
[349303176,1737108636169,-500.0,0.00029809,2]
[349303177,1737108636177,-500.0,0.00029809,2]
[349303178,1737108636184,-500.0,0.00029809,2]
[349303179,1737108636192,-500.0,0.00029809,2]
[349303180,1737108636200,-500.0,0.00029809,2]
[349303181,1737108636208,-500.0,0.00029809,2]
[349303182,1737108636216,-198.51630819,0.00029809,2]
[349303183,1737108636225,-500.0,0.00029809,2]
[349303184,1737108636234,-500.0,0.00029809,2]
[349303185,1737108636244,-469.98694934,0.00029809,2]
[349303186,1737108636253,-500.0,0.00029809,2]
[349303187,1737108636264,-500.0,0.00029809,2]
[349303188,1737108636274,-500.0,0.00029809,2]
[349303189,1737108636283,-339.57471854,0.00029809,2]
[349303190,1737108636292,-500.0,0.00029809,2]
[349303191,1737108636302,-500.0,0.00029809,2]
[349303192,1737108636311,-500.0,0.00029809,2]
[349303193,1737108636320,-500.0,0.00029809,2]
[349303194,1737108636329,-500.0,0.00029809,2]
[349303195,1737108636339,-500.0,0.00029809,2]
[349303196,1737108636348,-500.0,0.00029809,2]
[349303197,1737108636357,-500.0,0.00029809,2]
[349303198,1737108636366,-500.0,0.00029809,2]
[349303199,1737108636376,-500.0,0.00029809,2]
[349303200,1737108636387,-502.35952506,0.00029809,2]
[349303201,1737108636396,-1000.0,0.0002981,7]
[349303202,1737108636406,-2800.0,0.0002981,7]
[349303203,1737108636415,-150.99,0.00029815,2]
[349303204,1737108636424,-17351.46613411,0.00030013,2]
[349303205,1737108636437,-10426.86005265,0.00030013,2]
[349303206,1737108636448,-53923.33245786,0.00030013,2]
[349303207,1737108636460,-15413.50881316,0.00030013,2]
[349303208,1737108636471,-9432.78553198,0.00030013,2]
[349303209,1737108636485,-1997.21734795,0.00030013,2]
[349303210,1737108637678,-500.0,0.00028894,2]
[349303211,1737108637688,-500.0,0.00029809,2]
[349303212,1737108637697,-1896.39516468,0.0003,120]
[349303213,1737108637709,-918.803945,0.0003,120]
[349303214,1737108639590,-500.0,0.00029808,2]
[349303215,1737108639600,-5602.80089032,0.0003,120]
[349303216,1737108639610,-9455.82966229,0.00030013,2]
[349303217,1737108639620,-1000.0,0.000302,60]
[349303218,1737108639629,-500.0,0.00030358,7]
[349303219,1737108639638,-1000.0,0.000305,60]
[349303220,1737108639648,-531.3,0.00030508,2]
[349303221,1737108639657,-1000.0,0.00030632,7]
[349303222,1737108639666,-2800.0,0.00030632,7]
[349303223,1737108639675,-1000.0,0.00031,60]
[349303224,1737108639685,-21985.92696656,0.00031,2]
[349303225,1737108639694,-650.0,0.00031,2]
[349303226,1737108639703,-541.067122,0.00031231,120]
[349303227,1737108639713,-500.0,0.00031243,2]
[349303228,1737108639722,-500.0,0.00031243,2]
[349303229,1737108639732,-238.58,0.00031243,2]
[349303230,1737108639741,-500.0,0.00031243,2]
[349303231,1737108639750,-500.0,0.00031244,2]
[349303232,1737108639759,-500.0,0.00031244,2]
[349303233,1737108639769,-500.0,0.00031244,2]
[349303234,1737108639779,-500.0,0.00031244,2]
[349303235,1737108639789,-500.0,0.00031244,2]
[349303236,1737108639798,-500.0,0.00031244,2]
[349303237,1737108639807,-500.0,0.00031244,2]
[349303238,1737108639816,-500.0,0.00031244,2]
[349303239,1737108639826,-617.60453351,0.00031244,2]
[349303240,1737108639835,-500.0,0.00031244,2]
[349303241,1737108639845,-500.0,0.00031244,2]
[349303242,1737108639854,-509.3797786,0.00031244,2]
[349303243,1737108639864,-500.0,0.00031244,2]
[349303244,1737108639873,-500.0,0.00031244,2]
[349303245,1737108639882,-500.0,0.00031244,2]
[349303246,1737108639891,-500.0,0.00031244,2]
[349303247,1737108639901,-500.0,0.00031244,2]
[349303248,1737108639910,-385.17589502,0.00031244,2]
[349303249,1737108639919,-500.0,0.00031244,2]
[349303250,1737108639929,-500.0,0.00031244,2]
[349303251,1737108639938,-500.0,0.00031244,2]
[349303252,1737108639947,-500.0,0.00031244,2]
[349303253,1737108639957,-500.0,0.00031244,45]
[349303255,1737108640107,-500.0,0.00031244,2]
[349303257,1737108640117,-500.0,0.00031244,2]
[349303258,1737108640127,-566.29397585,0.00031244,2]
[349303259,1737108640136,-500.0,0.00031244,2]
[349303260,1737108640146,-500.0,0.00031244,2]
[349303261,1737108640156,-500.0,0.00031244,2]
[349303262,1737108640165,-500.0,0.00031244,2]
[349303263,1737108640175,-500.0,0.00031244,2]
[349303264,1737108640185,-500.0,0.00031244,2]
[349303265,1737108640194,-500.0,0.00031244,2]
[349303266,1737108640203,-500.0,0.00031244,2]
[349303267,1737108640214,-500.0,0.00031244,2]
[349303268,1737108640223,-500.0,0.00031244,2]
[349303269,1737108640233,-500.0,0.00031244,2]
[349303270,1737108640243,-500.0,0.00031244,2]
[349303271,1737108640252,-500.0,0.00031244,2]
[349303272,1737108640261,-500.0,0.00031244,2]
[349303273,1737108640271,-500.0,0.00031244,2]
[349303274,1737108640280,-500.0,0.00031244,2]
[349303275,1737108640290,-500.0,0.00031244,2]
[349303276,1737108640299,-500.0,0.00031244,2]
[349303277,1737108640308,-500.0,0.00031244,2]
[349303278,1737108640318,-445.07696134,0.00031244,2]
[349303279,1737108640327,-500.0,0.00031244,2]
[349303280,1737108640336,-500.0,0.00031244,2]
[349303281,1737108640345,-500.0,0.00031244,2]
[349303282,1737108640355,-500.0,0.00031244,2]
[349303283,1737108640363,-500.0,0.00031244,2]
[349303284,1737108640372,-500.0,0.00031244,2]
[349303285,1737108640382,-500.0,0.00031244,2]
[349303286,1737108640391,-500.0,0.00031244,2]
[349303287,1737108640401,-500.0,0.00031244,2]
[349303288,1737108640410,-644.86935924,0.00031244,2]
[349303289,1737108640419,-500.0,0.00031244,2]
[349303290,1737108640429,-500.0,0.00031244,2]
[349303291,1737108640438,-500.0,0.00031244,2]
[349303292,1737108640447,-500.0,0.00031244,2]
[349303293,1737108640458,-151.56,0.00031244,2]
[349303294,1737108640468,-504.36999896,0.00031244,2]
[349303295,1737108640482,-444.58084135,0.00031244,2]
[349303296,1737108640492,-500.0,0.00031244,2]
[349303297,1737108640501,-500.0,0.00031244,2]
[349303298,1737108640510,-500.0,0.00031244,2]
[349303299,1737108640520,-204.82068201,0.00031244,2]
[349303300,1737108640529,-500.0,0.00031244,2]
[349303301,1737108640539,-500.0,0.00031244,2]
[349303302,1737108640548,-500.0,0.00031244,2]
[349303303,1737108640557,-500.0,0.00031244,2]
[349303304,1737108640568,-190.39872245,0.00031244,2]
[349303305,1737108640678,-309.60127755,0.00031244,2]
[349303306,1737108640688,-500.0,0.00031244,2]
[349303307,1737108640697,-500.0,0.00031244,2]
[349303308,1737108640706,-500.0,0.00031244,2]
[349303309,1737108640715,-587.75230671,0.00031244,2]
[349303310,1737108640725,-500.0,0.00031244,2]
[349303311,1737108640734,-500.0,0.00031244,2]
[349303312,1737108640743,-500.0,0.00031244,2]
[349303313,1737108640752,-497.07453179,0.00031244,2]
[349303314,1737108640762,-206.46560108,0.00031244,2]
[349303315,1737108640934,150.0,0.00019,2]
[349303336,1737108642439,-293.53439892,0.00031244,2]
[349303339,1737108642450,-500.0,0.00031244,2]
[349303341,1737108642460,-500.0,0.00031244,2]
[349303343,1737108642470,-500.0,0.00031244,2]
[349303345,1737108642484,-500.0,0.00031244,2]
[349303347,1737108642494,-500.0,0.00031244,2]
[349303348,1737108642503,-500.0,0.00031244,2]
[349303349,1737108642512,-500.0,0.00031244,2]
[349303350,1737108642523,-500.0,0.00031244,2]
[349303351,1737108642532,-500.0,0.00031244,2]
[349303352,1737108642541,-500.0,0.00031244,2]
[349303353,1737108642550,-500.0,0.00031244,2]
[349303354,1737108642560,-500.0,0.00031244,2]
[349303355,1737108642569,-500.0,0.00031244,2]
[349303356,1737108642578,-500.0,0.00031244,2]
[349303357,1737108642587,-500.0,0.00031244,2]
[349303358,1737108642596,-500.0,0.00031244,2]
[349303359,1737108642605,-500.0,0.00031244,2]
[349303360,1737108642615,-500.0,0.00031244,2]
[349303361,1737108642624,-500.0,0.00031244,2]
[349303362,1737108642633,-500.0,0.00031244,2]
[349303363,1737108642642,-500.0,0.00031244,2]
[349303364,1737108642653,-500.0,0.00031244,2]
[349303365,1737108642662,-533.93142622,0.00031244,2]
[349303366,1737108642671,-347.28101028,0.00031244,2]
[349303367,1737108642680,-500.0,0.00031244,2]
[349303368,1737108642689,-518.59580669,0.00031244,2]
[349303369,1737108642699,-514.36221316,0.00031244,2]
[349303370,1737108642709,-500.0,0.00031244,2]
[349303371,1737108642718,-500.0,0.00031244,2]
[349303373,1737108642727,-500.0,0.00031244,2]
[349303375,1737108642737,-500.0,0.00031244,2]
[349303377,1737108642746,-500.0,0.00031244,2]
[349303379,1737108642755,-570.53164706,0.00031244,2]
[349303381,1737108642764,-500.0,0.00031244,2]
[349303382,1737108642773,-500.0,0.00031244,2]
[349303384,1737108642782,-500.0,0.00031244,2]
[349303387,1737108642792,-565.33786348,0.00031244,2]
[349303388,1737108642801,-500.0,0.00031244,2]
[349303391,1737108642811,-500.0,0.00031244,2]
[349303393,1737108642821,-500.0,0.00031244,2]
[349303395,1737108642830,-529.63784236,0.00031244,2]
[349303396,1737108642839,-500.0,0.00031244,2]
[349303398,1737108642849,-500.0,0.00031244,2]
[349303400,1737108642858,-500.0,0.00031244,2]
[349303402,1737108642867,-500.0,0.00031244,2]
[349303403,1737108642876,-500.0,0.00031244,2]
[349303404,1737108642886,-553.86,0.00031244,2]
[349303405,1737108642896,-500.0,0.00031244,2]
[349303406,1737108642906,-419.27888391,0.00031244,2]
[349303407,1737108642926,-80.72111609,0.00031244,2]
[349303408,1737108642935,-500.0,0.00031244,2]
[349303409,1737108642945,-44.71888391,0.00031244,2]
[349303410,1737108642957,-455.28111609,0.00031244,2]
[349303411,1737108642967,-500.0,0.00031244,2]
[349303412,1737108642976,-501.04194486,0.00031244,2]
[349303413,1737108642985,-500.0,0.00031244,2]
[349303414,1737108642995,-206.08620884,0.00031244,2]
[349303415,1737108643006,-293.91379116,0.00031244,2]
[349303416,1737108643026,-504.43883585,0.00031244,2]
[349303417,1737108643037,-500.0,0.00031244,2]
[349303418,1737108643046,-504.44033227,0.00031244,2]
[349303419,1737108643057,-500.0,0.00031244,2]
[349303420,1737108643066,-500.0,0.00031244,2]
[349303421,1737108643076,-500.0,0.00031244,2]
[349303422,1737108643086,-500.0,0.00031244,2]
[349303423,1737108643096,-501.48471784,0.00031244,2]
[349303424,1737108643107,-503.34847692,0.00031244,2]
[349303425,1737108643118,-500.0,0.00031244,2]
[349303426,1737108643127,-500.0,0.00031244,2]
[349303427,1737108643138,-500.0,0.00031244,2]
[349303428,1737108643148,-500.0,0.00031244,2]
[349303429,1737108643159,-500.0,0.00031244,2]
[349303430,1737108643168,-500.0,0.00031244,2]
[349303431,1737108643178,-506.31459849,0.00031244,2]
[349303432,1737108643187,-204.04612689,0.00031244,2]
[349303433,1737108645593,-295.95387311,0.00031244,2]
[349303434,1737108645603,-501.62509503,0.00031244,2]
[349303435,1737108645613,-500.0,0.00031244,2]
[349303436,1737108645623,-500.0,0.00031244,2]
[349303437,1737108645633,-500.0,0.00031244,2]
[349303438,1737108645644,-500.0,0.00031244,2]
[349303439,1737108645654,-500.0,0.00031244,2]
[349303440,1737108645665,-509.59013913,0.00031244,2]
[349303441,1737108645675,-411.0716583,0.00031244,2]
[349303442,1737108645684,-500.0,0.00031244,2]
[349303443,1737108645695,-500.0,0.00031244,2]
[349303444,1737108645705,-601.85862202,0.00031244,2]
[349303445,1737108645718,-500.0,0.00031244,2]
[349303446,1737108645727,-500.0,0.00031244,2]
[349303448,1737108645737,-500.0,0.00031244,2]
[349303450,1737108645747,-500.0,0.00031244,2]
[349303452,1737108645757,-500.0,0.00031244,2]
[349303454,1737108645766,-500.0,0.00031244,2]
[349303456,1737108645775,-501.50911358,0.00031244,2]
[349303458,1737108645785,-500.0,0.00031244,2]
[349303460,1737108645794,-500.0,0.00031244,2]
[349303462,1737108645804,-500.0,0.00031244,2]
[349303464,1737108645814,-500.0,0.00031244,2]
[349303466,1737108645823,-500.0,0.00031244,2]
[349303468,1737108645832,-500.0,0.00031244,2]
[349303470,1737108645842,-515.74137141,0.00031244,2]
[349303472,1737108645852,-1000.0,0.00031414,2]
[349303474,1737108645861,-1000.0,0.00031454,7]
[349303476,1737108645871,-2800.0,0.00031454,7]
[349303478,1737108645881,-187.88,0.00031459,2]
[349303480,1737108645891,-3776.0593,0.0003146,2]
[349303482,1737108645901,-8846.9369,0.0003146,2]
[349303484,1737108645910,-442.06,0.00031507,2]
[349303486,1737108645919,-3899.0,0.00031544,2]
[349303488,1737108645929,-150.0,0.00031544,2]
[349303490,1737108645939,-500.0,0.0003156,2]
[349303492,1737108645948,-500.0,0.0003156,2]
[349303494,1737108645958,-500.0,0.0003156,2]
[349303501,1737108645967,-500.0,0.0003156,2]
[349303503,1737108646033,-500.0,0.0003156,2]
[349303505,1737108646043,-500.0,0.0003156,2]
[349303507,1737108646052,-500.0,0.0003156,2]
[349303509,1737108646064,-500.0,0.0003156,2]
[349303510,1737108646073,-500.0,0.0003156,2]
[349303512,1737108646083,-500.0,0.0003156,2]
[349303514,1737108646092,-500.0,0.0003156,2]
[349303516,1737108646102,-500.0,0.0003156,2]
[349303519,1737108646116,-500.0,0.0003156,2]
[349303521,1737108646125,-500.0,0.0003156,2]
[349303523,1737108646134,-500.0,0.0003156,2]
[349303525,1737108646143,-500.0,0.0003156,2]
[349303527,1737108646152,-500.0,0.0003156,2]
[349303529,1737108646162,-500.0,0.0003156,2]
[349303531,1737108646171,-500.0,0.0003156,2]
[349303533,1737108646180,-500.0,0.0003156,2]
[349303534,1737108646189,-500.0,0.0003156,2]
[349303536,1737108646198,-500.0,0.0003156,2]
[349303538,1737108646207,-500.0,0.0003156,2]
[349303540,1737108646217,-462.63257161,0.0003156,2]
[349303541,1737108646229,-37.36742839,0.0003156,2]
[349303542,1737108646239,-500.0,0.0003156,2]
[349303543,1737108646249,-500.0,0.0003156,2]
[349303544,1737108646258,-500.0,0.0003156,2]
[349303545,1737108646271,-500.0,0.0003156,2]
[349303546,1737108646280,-500.0,0.0003156,2]
[349303547,1737108646290,-500.0,0.0003156,2]
[349303548,1737108646300,-500.0,0.0003156,2]
[349303549,1737108646309,-500.0,0.0003156,2]
[349303550,1737108646318,-500.0,0.0003156,2]
[349303551,1737108646328,-500.0,0.0003156,2]
[349303552,1737108646337,-500.0,0.0003156,2]
[349303553,1737108646348,-500.0,0.0003156,2]
[349303554,1737108646357,-500.0,0.0003156,2]
[349303555,1737108646366,-500.0,0.0003156,2]
[349303556,1737108646376,-500.0,0.0003156,2]
[349303557,1737108646385,-500.0,0.0003156,2]
[349303558,1737108646395,-500.0,0.0003156,2]
[349303559,1737108646404,-500.0,0.0003156,2]
[349303560,1737108646414,-500.0,0.0003156,2]
[349303561,1737108646423,-500.0,0.0003156,2]
[349303562,1737108646433,-500.0,0.0003156,2]
[349303563,1737108646442,-500.0,0.0003156,2]
[349303564,1737108646452,-500.0,0.0003156,2]
[349303565,1737108646463,-500.0,0.0003156,2]
[349303566,1737108646472,-500.0,0.0003156,2]
[349303567,1737108646484,-500.0,0.0003156,2]
[349303568,1737108646493,-638.0,0.0003156,2]
[349303569,1737108646503,-500.0,0.00031686,2]
[349303570,1737108646513,-150.0,0.00031687,2]
[349303571,1737108646523,-1268.0,0.00031687,2]
[349303572,1737108646533,-2017.0,0.00031687,2]
[349303573,1737108646542,-567.0,0.00031687,2]
[349303574,1737108646552,-150.0,0.00031687,2]
[349303575,1737108646563,-1862.0,0.00031687,2]
[349303576,1737108646574,-2945.0,0.00031687,2]
[349303577,1737108646583,-819.0,0.00031687,2]
[349303578,1737108646592,-1500.0,0.00031779,2]
[349303579,1737108646601,-173.88482316,0.00031779,2]
[349303580,1737108646611,-201.95985302,0.000318,2]
[349303581,1737108646620,-245.8040692,0.000318,2]
[349303582,1737108646629,-250.0,0.00031857,2]
[349303583,1737108646639,-178.16255007,0.00031869,2]
[349303584,1737108646649,-500.0,0.00031878,2]
[349303585,1737108646659,-1008.5,0.00031878,2]
[349303586,1737108646668,-2389.46605144,0.00031878,3]
[349303587,1737108646696,-840.72193795,0.00031878,3]
[349303632,1737109037142,154.75,0.00010137,2]
[349303633,1737109037527,154.75,0.00017599,2]
[349303634,1737109100057,173.88,0.00012329,2]
[349303635,1737109511267,1078.53746128,0.000154,2]
[349303636,1737109555412,8408.23187903,6.94e-05,2]
[349303637,1737109567587,1193.34355095,8e-05,2]
[349303638,1737109599758,453.79691383,0.00014888,2]
[349303639,1737109641132,-451.6,0.00021654,2]
[349303640,1737109641159,-1098.74983991,0.00023239,2]
[349303641,1737109647094,-46.26722675,0.00023239,2]
[349303642,1737109647118,-397.20060821,0.00023571,2]
[349303665,1737109831717,-550.0,0.00023571,2]
[349303666,1737109831807,-52.79939179,0.00023571,2]
[349303667,1737109831817,-182.0,0.00023571,2]
[349303668,1737109831827,-500.0,0.00023571,3]
[349303669,1737109831836,-647.28403412,0.00023696,120]
[349303670,1737109831846,-2014.46551318,0.00023696,2]
[349303671,1737109831855,-1778.0154626,0.00023696,2]
[349303672,1737109831865,-451.6,0.00023918,2]
[349303673,1737109831874,-154.75,0.0002506,2]
[349303674,1737109831887,-520.07642591,0.000254,2]
[349303675,1737109831901,-2599.92357409,0.000254,2]
[349303676,1737109831911,-451.6,0.00026181,2]
[349303677,1737109831922,-309.63704409,0.00026375,2]
[349303678,1737109831937,-900.91745388,0.00026375,2]
[349303679,1737109831949,-280.0,0.00026375,2]
[349303680,1737109831962,-363.45550203,0.00026375,2]
[349303681,1737109831972,-396.898,0.00026375,2]
[349303682,1737109831982,-151.0,0.00026375,2]
[349303683,1737109831991,-2017.0,0.00026375,2]
[349303684,1737109832001,-561.16701704,0.00026375,2]
[349303685,1737109832016,-706.83298296,0.00026375,2]
[349303686,1737109832025,-3899.0,0.00026375,2]
[349303687,1737109832035,-1000.0,0.00026518,2]
[349303688,1737109832044,-2348.23550363,0.000269,5]
[349303689,1737109832054,-221.93151341,0.00028419,2]
[349303690,1737109832066,-28.06848659,0.00028419,2]
[349303691,1737109832075,-451.6,0.00028445,2]